bitfinex-derivatives/quotes_BNBF0:USTF0_20250305
["timestamp","ask_amount","ask_price","bid_price","bid_amount"]
[1741194895272,0.85219702,592.23,591.17,0.33831216]
[1741194895470,2.66923194,592.24,591.17,0.33831216]
[1741194896671,1.49019702,592.24,591.17,0.33831216]
[1741194896873,0.638,592.24,591.17,0.33831216]
[1741194897470,2.66923194,592.24,591.17,0.33831216]
[1741194899773,1.47313144,592.23,591.17,0.33831216]
[1741194900374,1.17903492,592.22,591.17,0.33831216]
[1741194900876,1.17903492,592.21,591.17,0.33831216]
[1741194901676,1.17903492,592.22,591.17,0.33831216]
[1741194902178,2.03123194,592.22,591.17,0.33831216]
[1741194902377,1.17903492,592.21,591.17,0.33831216]
[1741194902978,0.29410025,592.2,591.17,0.33831216]
[1741194903379,1.17903492,592.19,591.17,0.33831216]
[1741194903974,1.17903492,592.18,591.17,0.33831216]
[1741194904383,1.17903492,592.17,591.17,0.33831216]
[1741194904877,0.747,592.16,591.17,0.33831216]
[1741194905176,1.17903492,592.15,591.17,0.33831216]
[1741194906074,2.03241425,592.15,591.17,0.33831216]
[1741194906477,0.85337933,592.15,591.17,0.33831216]
[1741194906676,1.04111765,592.16,591.17,0.33831216]
[1741194908882,1.18368771,592.15,591.17,0.33831216]
[1741194909287,1.18368771,592.14,591.17,0.33831216]
[1741194909888,1.18368771,592.13,591.17,0.33831216]
[1741194910386,1.18368771,592.12,591.17,0.33831216]
[1741194911089,1.18368771,592.11,591.17,0.33831216]
[1741194911683,1.18368771,592.1,591.17,0.33831216]
[1741194912491,1.18368771,592.11,591.17,0.33831216]
[1741194913090,1.18368771,592.1,591.17,0.33831216]
[1741194913990,1.18368771,592.11,591.17,0.33831216]
[1741194914889,1.18368771,592.1,591.17,0.33831216]
[1741194915584,1.18368771,592.12,591.17,0.33831216]
[1741194917089,1.18368771,592.11,591.17,0.33831216]
[1741194917492,1.18368771,592.1,591.17,0.33831216]
[1741194918292,1.18368771,592.09,591.17,0.33831216]
[1741194918891,1.18368771,592.12,591.17,0.33831216]
[1741194919595,1.18368771,592.11,591.17,0.33831216]
[1741194920292,1.18368771,592.1,591.17,0.33831216]
[1741194920890,0.31060366,592.09,591.17,0.33831216]
[1741194921295,1.18368771,592.08,591.17,0.33831216]
[1741194922095,1.18368771,592.07,591.17,0.33831216]
[1741194922996,1.18368771,592.06,591.17,0.33831216]
[1741194923688,1.18368771,592.12,591.17,0.33831216]
[1741194923895,1.47782773,592.12,591.17,0.33831216]
[1741194924396,1.18368771,592.11,591.17,0.33831216]
[1741194924597,1.18368771,592.1,591.17,0.33831216]
[1741194924997,1.18368771,592.09,591.17,0.33831216]
[1741194925497,1.18368771,592.11,591.17,0.33831216]
[1741194926198,0.747,592.16,591.17,0.33831216]
[1741194933702,0.29403937,592.47,591.17,0.33831216]
[1741194934103,1.18368771,592.46,591.17,0.33831216]
[1741194934305,2.03514883,592.46,591.17,0.33831216]
[1741194934503,0.85104331,592.45,591.17,0.33831216]
[1741194934705,2.03473102,592.46,591.17,0.33831216]
[1741194935305,1.18368771,592.45,591.17,0.33831216]
[1741194935704,2.03473102,592.45,591.17,0.33831216]
[1741194935906,0.29405179,592.38,591.17,0.33831216]
[1741194936804,0.725,592.23,591.17,0.33831216]
[1741194942007,0.29409279,592.22,591.17,0.33831216]
[1741194944506,0.725,592.23,591.17,0.33831216]
[1741194945012,0.29409279,592.22,591.17,0.33831216]
[1741194945208,0.60464126,592.22,591.17,0.33831216]
[1741194945415,0.557,592.21,591.17,0.33831216]
[1741194957535,0.725,592.23,591.17,0.33831216]
[1741194959035,0.29402322,592.5,591.17,0.33831216]
[1741194959636,0.85090183,592.83,591.17,0.33831216]
[1741194959832,0.29396733,592.59,591.17,0.33831216]
[1741194960032,0.33737622,592.81,591.17,0.33831216]
[1741194960233,2.34497238,592.8,591.17,0.33831216]
[1741194960436,0.29392885,592.59,591.17,0.33831216]
[1741194960635,0.9533876,592.79,591.17,0.33831216]
[1741194960836,1.8314575,592.78,591.17,0.33831216]
[1741194961137,0.64777549,592.77,591.17,0.33831216]
[1741194961334,0.64778118,592.76,591.17,0.33831216]
[1741194961637,0.64778687,592.75,591.17,0.33831216]
[1741194961832,0.64779256,592.74,591.17,0.33831216]
[1741194962036,0.64779826,592.73,591.17,0.33831216]
[1741194962231,0.64780395,592.72,591.17,0.33831216]
[1741194962438,0.64780964,592.71,591.17,0.33831216]
[1741194962732,0.64779311,592.7,591.17,0.33831216]
[1741194962936,0.64779881,592.69,591.17,0.33831216]
[1741194963139,0.31035428,592.68,591.17,0.33831216]
[1741194964039,0.63139966,592.67,591.17,0.33831216]
[1741194964239,0.33745591,592.67,591.17,0.33831216]
[1741194966440,0.31030899,592.66,591.17,0.33831216]
[1741194966635,0.3374673,592.65,591.17,0.33831216]
[1741194966840,0.31030899,592.64,591.17,0.33831216]
[1741194967635,0.33747869,592.63,591.17,0.33831216]
[1741194967835,0.31030899,592.62,591.17,0.33831216]
[1741194968040,0.33749008,592.61,591.17,0.33831216]
[1741194968239,0.31030899,592.6,591.17,0.33831216]
[1741194968636,0.33750147,592.59,591.17,0.33831216]
[1741194968836,0.31030899,592.58,591.17,0.33831216]
[1741194969144,0.33751286,592.57,591.17,0.33831216]
[1741194971747,0.60428497,592.56,591.17,0.33831216]
[1741194971945,0.29394871,592.56,591.17,0.33831216]
[1741194972143,0.31034385,592.55,591.17,0.33831216]
[1741194972957,0.33752995,592.54,591.17,0.33831216]
[1741194973148,0.31039254,592.53,591.17,0.33831216]
[1741194974149,0.33754134,592.52,591.17,0.33831216]
[1741194974349,0.31039254,592.51,591.17,0.33831216]
[1741194974749,0.31039993,592.5,591.17,0.33831216]
[1741194974945,0.64795836,592.49,591.17,0.33831216]
[1741194975250,0.64796406,592.48,591.17,0.33831216]
[1741194975447,0.33756983,592.47,591.17,0.33831216]
[1741194978451,0.3104015,592.46,591.17,0.33831216]
[1741194978650,0.33756983,592.47,591.17,0.33831216]
[1741194988262,0.84886253,593.18,591.17,0.33831216]
[1741194988465,0.64763595,592.78,591.17,0.33831216]
[1741194988663,0.33739329,592.78,591.17,0.33831216]
[1741194989259,0.521,592.77,591.17,0.33831216]
[1741194989965,0.85839899,592.77,591.17,0.33831216]
[1741194990165,0.31025499,592.76,591.17,0.33831216]
[1741194990464,0.85839899,592.77,591.17,0.33831216]
[1741194990660,0.85839899,592.77,591.44,1.48921662]
[1741194991366,0.85839899,592.77,591.45,0.33815199]
[1741194994065,0.33740468,592.76,591.45,0.33815199]
[1741194996568,0.29389286,592.75,591.45,0.33815199]
[1741194996770,0.33741606,592.74,591.45,0.33815199]
[1741194998973,0.31037585,592.73,591.45,0.33815199]
[1741194999275,0.33742745,592.72,591.45,0.33815199]
[1741194999476,0.31037585,592.71,591.45,0.33815199]
[1741194999675,0.33743883,592.7,591.45,0.33815199]
[1741194999877,0.31037585,592.69,591.45,0.33815199]
[1741195000176,0.33745022,592.68,591.45,0.33815199]
[1741195000375,0.31037585,592.67,591.45,0.33815199]
[1741195000578,0.33746161,592.66,591.45,0.33815199]
[1741195000875,0.31037585,592.65,591.45,0.33815199]
[1741195001077,0.337473,592.64,591.45,0.33815199]
[1741195001275,0.31037585,592.63,591.45,0.33815199]
[1741195001479,0.33748439,592.62,591.45,0.33815199]
[1741195001778,0.31037585,592.61,591.45,0.33815199]
[1741195001978,0.64792474,592.6,591.45,0.33815199]
[1741195002278,0.64793043,592.59,591.45,0.33815199]
[1741195002578,0.64793613,592.58,591.45,0.33815199]
[1741195002778,0.64794182,592.57,591.45,0.33815199]
[1741195002976,0.64794752,592.56,591.45,0.33815199]
[1741195003175,0.64795321,592.55,591.45,0.33815199]
[1741195003374,0.64795891,592.54,591.45,0.33815199]
[1741195003570,0.33753565,592.53,591.45,0.33815199]
[1741195003779,0.3104282,592.52,591.45,0.33815199]
[1741195003971,0.33754704,592.51,591.45,0.33815199]
[1741195004274,0.3104282,592.5,591.45,0.33815199]
[1741195004577,0.33755843,592.49,591.45,0.33815199]
[1741195004778,0.3104282,592.48,591.45,0.33815199]
[1741195004978,0.33756983,592.47,591.45,0.33815199]
[1741195005172,0.3104282,592.46,591.45,0.33815199]
[1741195005376,0.3104178,592.45,591.45,0.33815199]
[1741195005577,0.33756983,592.47,591.45,0.33815199]
[1741195019788,0.2939723,592.46,591.45,0.33815199]
[1741195022491,0.555,592.45,591.45,0.33815199]
[1741195022895,0.84897603,592.45,591.45,0.33815199]
[1741195023796,0.33758692,592.44,591.45,0.33815199]
[1741195025900,0.29397851,592.43,591.45,0.33815199]
[1741195028695,0.33758692,592.44,591.45,0.33815199]
[1741195028899,0.2939872,592.42,591.45,0.33815199]
[1741195030294,0.33758692,592.44,591.45,0.33815199]
[1741195037003,0.31041569,592.43,591.45,0.33815199]
[1741195037809,0.60442649,592.42,591.45,0.33815199]
[1741195038007,0.31043929,592.41,591.45,0.33815199]
[1741195038610,0.33758692,592.44,591.45,0.33815199]
[1741195046721,0.31043585,592.43,591.45,0.33815199]
[1741195047316,0.33758692,592.44,591.45,0.33815199]
[1741195047521,0.31043557,592.43,591.45,0.33815199]
[1741195047916,0.33758692,592.44,591.45,0.33815199]
[1741195048121,0.31043609,592.43,591.45,0.33815199]
[1741195048723,0.33758692,592.44,591.45,0.33815199]
[1741195048925,0.31044238,592.43,591.45,0.33815199]
[1741195049623,0.33758692,592.44,591.45,0.33815199]
[1741195049823,0.2939872,592.42,591.45,0.33815199]
[1741195050122,0.33758692,592.44,591.45,0.33815199]
[1741195051217,0.31044196,592.43,591.45,0.33815199]
[1741195051419,0.60442916,592.43,591.45,0.33815199]
[1741195051620,0.31044196,592.42,591.45,0.33815199]
[1741195052826,0.29399714,592.41,591.45,0.33815199]
[1741195053029,0.6044391,592.41,591.45,0.33815199]
[1741195053229,0.29399714,592.41,591.45,0.33815199]
[1741195054729,0.588,592.4,591.45,0.33815199]
[1741195055930,0.2940667,592.39,591.45,0.33815199]
[1741195056531,0.31049278,592.38,591.0,1.48921662]
[1741195056729,1.17938642,592.37,591.0,1.48921662]
[1741195057230,1.17938642,592.36,591.0,1.48921662]
[1741195057628,1.51702464,592.35,591.01,0.33840374]
[1741195057828,1.51702464,592.35,591.01,0.63247789]
[1741195058033,1.17938642,592.34,591.01,0.63247789]
[1741195058333,1.71838642,592.34,591.01,0.63247789]
[1741195058532,1.17938642,592.33,591.01,0.63247789]
[1741195059630,0.539,592.34,591.01,0.63247789]
[1741195061528,0.539,592.34,591.01,0.33840374]
[1741195061934,0.539,592.34,591.01,0.63245553]
[1741195064037,0.539,592.34,591.04,1.48921662]
[1741195066134,0.539,592.34,591.18,1.48921662]
[1741195066539,0.539,592.34,591.19,0.33830071]
[1741195068746,0.539,592.34,591.24,1.48921662]
[1741195070446,0.539,592.34,591.23,1.48921662]
[1741195072748,0.539,592.34,591.24,1.48921662]
[1741195074746,0.539,592.34,591.25,1.48921662]
[1741195075849,0.539,592.34,591.19,0.33830071]
[1741195077853,0.476,592.33,591.19,0.33830071]
[1741195079754,0.476,592.33,591.22,1.48921662]
[1741195081559,0.476,592.33,591.24,0.3382721]
[1741195084261,0.476,592.33,591.28,1.48921662]
[1741195084757,0.476,592.33,591.29,0.3382435]
[1741195102177,0.476,592.33,591.33,1.48921662]
[1741195102678,0.476,592.33,591.34,0.3382149]
[1741195103478,0.917,592.33,591.34,0.3382149]
[1741195111681,0.917,592.33,591.37,1.48921662]
[1741195111880,0.917,592.33,591.39,0.3381863]
[1741195115682,0.917,592.33,591.59,1.48921662]
[1741195116384,0.15710289,592.33,591.59,1.48921662]
[1741195116983,0.15710289,592.33,591.66,1.48921662]
[1741195117180,0.15710289,592.33,591.67,0.33802626]
[1741195126185,0.01968241,592.33,591.67,0.33802626]
[1741195126792,0.00358201,592.33,591.67,0.33802626]
[1741195156415,0.31028319,592.93,591.67,0.33802626]
[1741195156819,0.29375269,592.94,591.67,0.33802626]
[1741195157018,0.33731932,592.91,591.67,0.33802626]
[1741195157219,0.31030219,592.9,591.67,0.33802626]
[1741195158015,0.364,592.89,591.67,0.33802626]
[1741195158216,0.31030219,592.88,591.67,0.33802626]
[1741195158717,0.31034946,592.87,591.67,0.33802626]
[1741195159019,0.31034946,592.86,591.67,0.33802626]
[1741195159215,0.364,592.89,591.67,0.33802626]
[1741195159216,0.31034946,592.88,591.67,0.33802626]
[1741195159412,0.31034946,592.87,591.67,0.33802626]
[1741195159718,0.31034946,592.86,591.67,0.33802626]
[1741195159913,0.31034946,592.88,591.67,0.33802626]
[1741195160119,0.31034946,592.87,591.67,0.33802626]
[1741195160315,0.31034946,592.88,591.67,0.33802626]
[1741195160517,0.31034946,592.87,591.67,0.33802626]
[1741195160718,0.31034946,592.88,591.67,0.33802626]
[1741195160916,0.6043379,592.87,591.67,0.33802626]
[1741195161117,0.31034946,592.86,590.74,1.48921662]
[1741195161318,0.33735915,592.84,590.84,0.33850111]
[1741195161513,0.31034946,592.83,590.84,0.33850111]
[1741195162414,0.33737622,592.81,590.84,0.33850111]
[1741195162618,0.31034946,592.8,590.85,0.2940257]
[1741195162920,0.33739329,592.78,590.87,0.33848393]
[1741195163120,0.31034946,592.77,590.87,0.33848393]
[1741195163420,0.33741037,592.75,590.87,0.33848393]
[1741195163621,0.31034946,592.74,590.87,0.33848393]
[1741195163820,0.33742176,592.73,590.87,0.33848393]
[1741195164021,0.31034946,592.72,590.87,0.33848393]
[1741195164216,0.33743314,592.71,590.87,0.33848393]
[1741195164419,0.31034946,592.7,590.87,0.33848393]
[1741195164619,0.33744453,592.69,590.87,0.33848393]
[1741195164819,0.31034946,592.68,590.87,0.33848393]
[1741195165223,0.33745591,592.67,590.87,0.33848393]
[1741195165419,0.31037992,592.66,590.87,0.33848393]
[1741195165620,0.3374673,592.65,590.87,0.33848393]
[1741195165815,0.31037992,592.64,590.87,0.33848393]
[1741195166021,0.33747869,592.63,590.87,0.33848393]
[1741195166321,0.31037992,592.62,590.87,0.33848393]
[1741195166719,0.33749008,592.61,590.87,0.33848393]
[1741195166921,0.31037992,592.6,590.87,0.33848393]
[1741195167216,0.33750147,592.59,590.87,0.33848393]
[1741195167520,0.31037992,592.58,590.87,0.33848393]
[1741195167720,0.33751286,592.57,590.87,0.33848393]
[1741195167921,0.31037992,592.56,590.87,0.33848393]
[1741195168123,0.64789848,592.56,590.87,0.33848393]
[1741195168318,0.31037992,592.55,590.87,0.33848393]
[1741195168623,0.792,592.54,590.87,0.33848393]
[1741195168814,0.31037992,592.53,590.87,0.33848393]
[1741195169921,0.29401701,592.52,590.87,0.33848393]
[1741195170221,0.31037992,592.51,590.87,0.33848393]
[1741195170424,0.31038107,592.5,590.87,0.33848393]
[1741195170623,0.31038107,592.49,590.87,0.33848393]
[1741195170818,0.29401701,592.52,590.87,0.33848393]
[1741195170819,0.31038107,592.51,590.87,0.33848393]
[1741195171122,0.29401701,592.52,590.87,0.33848393]
[1741195171123,0.31038107,592.5,590.87,0.33848393]
[1741195171421,0.31038107,592.49,590.87,0.33848393]
[1741195171624,0.31038107,592.48,590.87,0.33848393]
[1741195171815,0.29401701,592.52,590.87,0.33848393]
[1741195172618,0.792,592.54,590.87,0.33848393]
[1741195173025,0.29401701,592.52,590.87,0.33848393]
[1741195175721,0.792,592.54,590.87,0.33848393]
[1741195175921,0.29401701,592.52,590.87,0.33848393]
[1741195176422,0.792,592.54,590.87,0.33848393]
[1741195182130,0.29404433,592.53,590.87,0.33848393]
[1741195182528,0.33754134,592.52,590.87,0.33848393]
[1741195185030,0.29402943,592.51,590.87,0.33848393]
[1741195185329,0.33755274,592.5,590.87,0.33848393]
[1741195185626,0.31041031,592.49,590.87,0.33848393]
[1741195185832,0.33756413,592.48,590.87,0.33848393]
[1741195186631,0.33756413,592.48,590.87,1.82770055]
[1741195188031,0.29404185,592.47,590.87,1.82770055]
[1741195188535,0.63161168,592.47,590.87,1.82770055]
[1741195188735,0.63161168,592.47,590.87,0.33848393]
[1741195188936,0.364,592.46,590.87,0.33848393]
[1741195190941,0.29404806,592.45,590.87,0.33848393]
[1741195192742,0.64804429,592.44,590.87,0.33848393]
[1741195193043,0.31045737,592.43,590.87,0.33848393]
[1741195193636,0.33759832,592.42,590.87,0.33848393]
[1741195193839,0.31045737,592.41,590.87,0.33848393]
[1741195194034,0.33760972,592.4,590.87,0.33848393]
[1741195194236,0.31045737,592.39,590.87,0.33848393]
[1741195194439,0.33762112,592.38,590.87,0.33848393]
[1741195194738,0.31056171,592.37,590.87,0.33848393]
[1741195194940,0.33762112,592.38,590.87,0.33848393]
[1741195195942,0.7215786,592.37,590.87,0.33848393]
[1741195196141,0.3105786,592.36,590.87,0.33848393]
[1741195197038,0.29413256,592.35,590.87,0.33848393]
[1741195197240,0.3105786,592.34,590.87,0.33848393]
[1741195197437,0.33764962,592.33,590.87,0.33848393]
[1741195197636,0.3105786,592.32,590.87,0.33848393]
[1741195197844,0.33766102,592.31,590.87,0.33848393]
[1741195198042,0.3105786,592.3,590.87,0.33848393]
[1741195198545,0.33767242,592.29,590.87,0.33848393]
[1741195198842,0.3105786,592.28,590.87,0.33848393]
[1741195199043,0.33768382,592.27,590.87,0.33848393]
[1741195199242,0.3105786,592.26,590.87,0.33848393]
[1741195199840,0.33769523,592.25,590.87,0.33848393]
[1741195200037,0.3105786,592.24,590.87,0.33848393]
[1741195200240,0.33770663,592.23,590.87,0.33848393]
[1741195200543,0.3105786,592.22,590.87,0.33848393]
[1741195200744,0.31064602,592.21,590.87,0.33848393]
[1741195200945,0.31064602,592.2,590.87,0.33848393]
[1741195201141,0.31064602,592.22,590.87,0.33848393]
[1741195201340,0.31064602,592.21,590.87,0.33848393]
[1741195201538,0.33770663,592.23,590.87,0.33848393]
[1741195201744,0.31063131,592.22,590.87,0.33848393]
[1741195201943,0.33771803,592.21,590.87,0.33848393]
[1741195202143,0.31063131,592.2,590.87,0.33848393]
[1741195202345,0.33772944,592.19,590.87,0.33848393]
[1741195202644,0.31063817,592.18,590.87,0.33848393]
[1741195202843,0.33774085,592.17,590.87,0.33848393]
[1741195203043,0.31063817,592.16,590.87,0.33848393]
[1741195203243,0.33775225,592.15,590.87,0.33848393]
[1741195203443,0.31063817,592.14,590.87,0.33848393]
[1741195203643,0.33776366,592.13,590.87,0.33848393]
[1741195203844,0.31063817,592.12,590.87,0.33848393]
[1741195204046,0.33777507,592.11,590.87,0.33848393]
[1741195204245,0.31063817,592.1,590.87,0.33848393]
[1741195206042,0.63197002,592.09,590.87,0.33848393]
[1741195206343,0.31063817,592.08,590.87,0.33848393]
[1741195206937,0.33779789,592.07,590.87,0.33848393]
[1741195207139,0.31063817,592.06,590.87,0.33848393]
[1741195207947,0.3378093,592.05,590.87,0.33848393]
[1741195208249,0.31063817,592.04,590.87,0.33848393]
[1741195208648,0.33782071,592.03,590.87,0.33848393]
[1741195208842,0.31063817,592.02,590.87,0.33848393]
[1741195210145,0.33783213,592.01,590.87,0.33848393]
[1741195210347,0.31063817,592.0,590.87,0.33848393]
[1741195210548,0.33784354,591.99,590.87,0.33848393]
[1741195210746,0.31063817,591.98,590.87,0.33848393]
[1741195210943,0.33785495,591.97,590.87,0.33848393]
[1741195211145,0.31063817,591.96,590.87,0.33848393]
[1741195211351,0.33786637,591.95,590.87,0.33848393]
[1741195211649,0.31063817,591.94,590.87,0.33848393]
[1741195211851,0.33787778,591.93,590.87,0.33848393]
[1741195212151,0.31063817,591.92,590.87,0.33848393]
[1741195212346,0.3378892,591.91,590.87,0.33848393]
[1741195212550,0.31063817,591.9,590.87,0.33848393]
[1741195213150,0.70190062,591.89,590.87,0.33848393]
[1741195213550,0.3107987,591.88,590.76,0.29429175]
[1741195213750,0.33791204,591.87,590.76,0.29429175]
[1741195213953,0.3107987,591.86,590.76,0.29429175]
[1741195214350,0.33792346,591.85,590.76,0.29429175]
[1741195214552,0.3107987,591.84,590.76,0.29429175]
[1741195214752,0.33793487,591.83,589.69,1.48921662]
[1741195214954,0.3107987,591.82,590.76,0.29444489]
[1741195215252,0.3107987,591.82,589.79,0.33910374]
[1741195215652,0.63237976,591.83,589.79,0.33910374]
[1741195215850,0.31079349,591.82,589.79,0.33910374]
[1741195216051,0.3379463,591.81,589.8,0.29445984]
[1741195216252,0.31079349,591.8,589.9,0.33904051]
[1741195216455,0.33795772,591.79,589.9,0.33904051]
[1741195216650,0.31079349,591.78,589.9,0.33904051]
[1741195216856,0.33796914,591.77,589.9,0.33904051]
[1741195217048,0.31079349,591.76,589.9,0.33904051]
[1741195217253,0.33798056,591.75,589.9,0.33904051]
[1741195218048,0.29444863,591.74,589.9,0.33904051]
[1741195218459,0.33799198,591.73,589.9,0.33904051]
[1741195220958,0.29445112,591.72,589.9,0.33904051]
[1741195221357,0.33799198,591.73,589.9,0.33904051]
[1741195226162,0.29434154,592.03,589.9,0.33904051]
[1741195226664,1.18255016,592.55,589.9,0.33904051]
[1741195226965,0.29427433,592.07,589.9,0.33904051]
[1741195227161,0.33763822,592.35,589.97,1.48921662]
[1741195227357,0.364,592.07,590.08,0.33893709]
[1741195228565,0.65826314,592.07,590.08,0.33893709]
[1741195229165,0.364,592.07,590.08,0.33893709]
[1741195229566,0.364,592.07,590.15,1.48921662]
[1741195229761,0.364,592.07,590.17,0.3388854]
[1741195231671,0.364,592.07,590.34,1.48921662]
[1741195232563,0.364,592.07,590.36,0.33877633]
[1741195232968,0.3378036,592.06,590.36,0.33877633]
[1741195233170,0.6320543,592.06,590.46,1.48921662]
[1741195233569,0.6320543,592.06,590.48,0.33870749]
[1741195234172,0.31063125,592.05,590.48,0.33870749]
[1741195238577,0.31060054,592.04,590.48,0.33870749]
[1741195238772,0.31060054,592.05,590.48,0.33870749]
[1741195238978,0.3378036,592.06,590.48,0.33870749]
[1741195242077,0.462,592.05,590.48,0.33870749]
[1741195245882,0.462,592.05,590.59,1.48921662]
[1741195246083,0.462,592.05,590.61,0.33863293]
[1741195246476,0.364,592.04,590.61,0.33863293]
[1741195257696,0.462,592.05,590.61,0.33863293]
[1741195260798,0.364,592.04,590.61,0.33863293]
[1741195268709,0.364,592.04,590.67,1.48921662]
[1741195269404,0.364,592.04,590.69,0.33858707]
[1741195273014,0.29415867,592.32,590.69,0.33858707]
[1741195274317,1.5052585,593.11,590.69,0.33858707]
[1741195274517,0.29399589,592.43,590.69,0.33858707]
[1741195274922,0.33727381,592.99,590.69,0.33858707]
[1741195275219,0.2940108,592.43,590.69,0.33858707]
[1741195275415,0.541,592.98,590.69,0.33858707]
[1741195275614,0.33733639,592.88,590.69,0.33858707]
[1741195275813,0.31045755,592.87,590.69,0.33858707]
[1741195276016,0.33735346,592.85,590.69,0.33858707]
[1741195276214,0.31045755,592.84,590.69,0.33858707]
[1741195276412,0.33737053,592.82,590.69,0.33858707]
[1741195276613,0.31045436,592.81,590.69,0.33858707]
[1741195276919,0.3373876,592.79,590.69,0.33858707]
[1741195277120,0.31045436,592.78,590.69,0.33858707]
[1741195277319,0.33740468,592.76,590.69,0.33858707]
[1741195277520,0.31045436,592.75,590.69,0.33858707]
[1741195277917,0.29403937,592.74,590.69,0.33858707]
[1741195278118,0.33742745,592.72,590.69,0.33858707]
[1741195278319,0.31045436,592.71,590.69,0.33858707]
[1741195278519,0.33744453,592.69,590.69,0.33858707]
[1741195278719,0.31045436,592.68,590.69,0.33858707]
[1741195278920,0.33746161,592.66,590.83,1.48921662]
[1741195279121,0.31045436,592.65,590.85,0.33849538]
[1741195279321,0.33747869,592.63,590.85,0.33849538]
[1741195279524,0.31045436,592.62,590.85,0.33849538]
[1741195280015,0.33749578,592.6,590.85,0.33849538]
[1741195280218,0.31045436,592.59,590.85,0.33849538]
[1741195280525,0.33751286,592.57,590.85,0.33849538]
[1741195280718,0.31045436,592.56,590.85,0.33849538]
[1741195280923,0.33752995,592.54,590.85,0.33849538]
[1741195281124,0.31045436,592.53,590.85,0.33849538]
[1741195281324,0.33754704,592.51,590.85,0.33849538]
[1741195281519,0.31045436,592.5,590.85,0.33849538]
[1741195281720,0.33755843,592.49,590.85,0.33849538]
[1741195281919,0.31045436,592.48,590.85,0.33849538]
[1741195282124,0.33756983,592.47,590.85,0.33849538]
[1741195282426,0.31045436,592.46,590.85,0.33849538]
[1741195282626,0.33758123,592.45,590.85,0.33849538]
[1741195282823,0.31045436,592.44,590.85,0.33849538]
[1741195283019,0.33759262,592.43,590.85,0.33849538]
[1741195285328,0.31042122,592.42,590.85,0.33849538]
[1741195286221,0.31042122,592.42,591.02,2.53373661]
[1741195286427,0.31042122,592.42,591.1,1.48921662]
[1741195286627,0.31043323,592.41,591.1,1.48921662]
[1741195286828,0.31043323,592.42,591.1,1.48921662]
[1741195287036,0.31043323,592.41,591.1,1.48921662]
[1741195287228,0.31043323,592.4,591.1,1.48921662]
[1741195287425,0.31043323,592.42,591.1,1.48921662]
[1741195287626,0.31043323,592.41,591.08,1.48921662]
[1741195287827,0.31043323,592.4,591.08,1.48921662]
[1741195288025,0.31043323,592.42,591.08,1.48921662]
[1741195288229,0.63161584,592.43,591.08,1.48921662]
[1741195288432,0.63161584,592.43,591.09,0.33835794]
[1741195289024,0.33759262,592.43,591.09,0.33835794]
[1741195290230,0.29392016,592.8,591.09,0.33835794]
[1741195291231,0.63130207,592.8,591.09,0.33835794]
[1741195292533,0.63130207,592.8,591.2,1.48921662]
[1741195292929,0.31025461,592.79,591.2,1.48921662]
[1741195293939,0.33739329,592.78,591.22,0.33828354]
[1741195294141,0.31025461,592.77,591.22,0.33828354]
[1741195294641,0.33740468,592.76,591.22,0.33828354]
[1741195294841,0.31025461,592.75,591.22,0.33828354]
[1741195295337,0.33740468,592.76,591.22,0.33828354]
[1741195295537,0.3103685,592.75,591.22,0.33828354]
[1741195295732,0.33742176,592.73,591.22,0.33828354]
[1741195298745,0.31039392,592.72,591.22,0.33828354]
[1741195299149,0.31040349,592.71,591.22,0.33828354]
[1741195299952,1.49296198,592.7,591.22,0.33828354]
[1741195300151,0.31041182,592.69,591.22,0.33828354]
[1741195300346,1.18255016,592.68,591.22,0.33828354]
[1741195300650,0.31041182,592.67,591.22,0.33828354]
[1741195300953,0.33746161,592.66,591.22,0.33828354]
[1741195301151,1.52001177,592.66,591.22,0.33828354]
[1741195301448,0.31042053,592.65,591.22,0.33828354]
[1741195301652,0.337473,592.64,591.22,0.33828354]
[1741195301847,0.31042053,592.63,591.22,0.33828354]
[1741195302552,0.33748439,592.62,591.22,0.33828354]
[1741195302745,0.31042053,592.61,591.22,0.33828354]
[1741195302951,0.33749578,592.6,591.22,0.33828354]
[1741195303152,0.31042053,592.59,591.22,0.33828354]
[1741195303653,0.33750717,592.58,591.22,0.33828354]
[1741195303853,0.31042053,592.57,591.22,0.33828354]
[1741195304052,0.33751856,592.56,591.22,0.33828354]
[1741195304355,0.31042053,592.55,591.22,0.33828354]
[1741195304553,0.33752995,592.54,591.22,0.33828354]
[1741195304749,0.31042053,592.53,591.22,0.33828354]
[1741195305751,0.33754134,592.52,591.22,0.33828354]
[1741195305955,0.31042053,592.51,591.22,0.33828354]
[1741195306156,0.33755274,592.5,591.22,0.33828354]
[1741195306356,0.31042053,592.49,591.22,0.33828354]
[1741195306656,0.64797896,592.49,591.22,0.33828354]
[1741195306855,0.33755843,592.49,591.22,0.33828354]
[1741195307058,0.31042069,592.48,591.22,0.33828354]
[1741195307956,0.29400583,592.47,591.22,0.33828354]
[1741195308154,0.31042069,592.46,591.22,0.33828354]
[1741195308559,0.29400583,592.47,591.22,0.33828354]
[1741195308758,0.31041251,592.46,591.22,0.33828354]
[1741195309057,0.31041397,592.45,591.22,0.33828354]
[1741195309252,0.31041397,592.46,591.22,0.33828354]